bitfinex-derivatives/quotes_ETHF0:USTF0_20250217
["timestamp","ask_amount","ask_price","bid_price","bid_amount"]
[1739784762546,6.99951,2716.1,2715.9,0.73635]
[1739784762745,6.99952,2716.1,2715.9,0.73636]
[1739784764454,6.99952,2716.1,2715.7,0.565]
[1739784764755,6.99952,2716.1,2716.0,0.73634]
[1739784765853,3.79172,2716.1,2716.0,0.73634]
[1739784766147,3.79172,2716.1,2715.7,0.565]
[1739784766351,3.79172,2716.1,2716.0,0.73634]
[1739784768746,3.9382992,2716.2,2716.0,0.73634]
[1739784768947,0.5619,2716.6,2716.1,1.0667]
[1739784769146,0.5619,2716.6,2716.4,0.73621]
[1739784769347,1.29809,2716.6,2716.4,0.73621]
[1739784769551,0.5619,2716.6,2716.4,0.73621]
[1739784769750,0.5619,2716.6,2716.2,0.5448]
[1739784769948,0.5619,2716.6,2716.5,0.7362]
[1739784770255,3.2078,2716.7,2716.3,3.2078]
[1739784770450,3.2078,2716.7,2716.6,0.73618]
[1739784770652,0.54402425,2717.0,2716.8,0.73611]
[1739784770653,3.06402425,2717.0,2716.8,0.73611]
[1739784770851,0.54402425,2717.0,2716.6,3.2078]
[1739784771057,2.52552425,2717.0,2716.9,0.73609]
[1739784771756,0.00552425,2717.0,2716.9,0.73609]
[1739784771954,0.00552425,2717.0,2716.7,1.1179]
[1739784771955,2.52552425,2717.0,2716.7,1.1179]
[1739784772156,2.52552425,2717.0,2716.9,0.73609]
[1739784772657,2.52552425,2717.0,2716.7,1.1179]
[1739784772862,2.52552425,2717.0,2716.9,0.73609]
[1739784773156,2.52552425,2717.0,2716.7,1.1179]
[1739784773463,2.52552425,2717.0,2716.9,0.73609]
[1739784773853,2.52552425,2717.0,2716.7,1.1179]
[1739784774159,2.52552425,2717.0,2716.8,0.7361]
[1739784774855,2.52552425,2717.0,2716.9,0.73609]
[1739784775553,2.52552425,2717.0,2716.8,0.73611]
[1739784776351,2.52552425,2717.0,2716.7,1.1179]
[1739784776558,2.52552425,2717.0,2716.9,0.73609]
[1739784780267,2.52552425,2717.0,2716.8,1.27441]
[1739784780268,6.46361345,2717.0,2716.8,1.27441]
[1739784780563,6.46361345,2717.0,2716.8,0.73611]
[1739784781062,6.46361345,2717.0,2716.7,1.1179]
[1739784781261,6.46361345,2717.0,2716.8,0.7361]
[1739784781462,0.73612,2716.9,2716.7,1.85404]
[1739784781658,1.2978,2716.9,2716.8,0.73612]
[1739784782061,0.5617,2716.9,2716.8,0.73612]
[1739784782262,5.72752345,2717.0,2716.7,1.1179]
[1739784782460,2.52552425,2717.0,2716.9,0.73609]
[1739784783765,0.00552425,2717.0,2716.9,0.73609]
[1739784784159,0.00552425,2717.0,2716.9,1.06977241]
[1739784784562,3.2078,2717.3,2716.9,1.06977241]
[1739784784868,3.2078,2717.3,2717.2,0.73601]
[1739784785366,3.94379,2717.3,2717.2,0.7727096]
[1739784785567,7.1457892,2717.3,2717.2,0.0366996]
[1739784785865,7.1457892,2717.3,2717.2,0.7727096]
[1739784786071,7.1457892,2717.3,2717.2,0.0366996]
[1739784786965,6.4097992,2717.3,2717.2,0.0366996]
[1739784787166,3.2019992,2717.3,2717.2,0.7727096]
[1739784787363,2.52352425,2717.5,2717.2,0.0366996]
[1739784787662,0.00552425,2717.5,2717.4,0.73596]
[1739784787863,2.52352425,2717.5,2717.4,0.73596]
[1739784788267,3.25945425,2717.5,2717.4,0.7726596]
[1739784788768,2.52352425,2717.5,2717.4,0.7726596]
[1739784791068,0.00552425,2717.5,2717.4,0.7726596]
[1739784793971,0.00552425,2717.5,2717.4,0.0366996]
[1739784794164,0.00552425,2717.5,2717.4,0.7726596]
[1739784795272,0.74145425,2717.5,2717.4,0.7726596]
[1739784795673,0.00552425,2717.5,2717.4,0.7726596]
[1739784797574,0.74145425,2717.5,2717.4,0.7726596]
[1739784797768,0.74145425,2717.5,2717.4,0.0366996]
[1739784797972,1.30565425,2717.5,2717.4,0.0366996]
[1739784799473,0.73604,2717.1,2717.0,0.00552425]
[1739784799667,13.9689284,2717.1,2716.4,2.0301]
[1739784799870,0.73623,2716.4,2716.2,0.5537]
[1739784800078,0.5642,2716.3,2716.2,0.5537]
[1739784800573,0.5642,2716.3,2715.9,1.1295]
[1739784800574,0.5642,2716.3,2715.9,0.5612]
[1739784800770,3.9383192,2716.1,2716.0,0.00552425]
[1739784802077,3.2019992,2716.1,2716.0,0.00552425]
[1739784802278,3.9383092,2716.1,2716.0,0.00552425]
[1739784802978,7.1461092,2716.1,2716.0,0.00552425]
[1739784804180,7.1461092,2716.1,2716.0,0.00552425]
[1739784805075,6.4097992,2716.1,2715.4,2.5897]
[1739784805274,3.9384592,2715.6,2715.4,0.5596]
[1739784805982,3.9384592,2715.6,2715.2,4.52425]
[1739784805983,3.9384592,2715.6,2715.2,3.7877]
[1739784806175,0.73649,2715.5,2715.2,3.7877]
[1739784807282,0.73651,2715.4,2715.2,3.7877]
[1739784807475,0.73649,2715.5,2715.2,4.52425]
[1739784807979,3.2019992,2715.6,2715.2,3.7877]
[1739784808373,3.9384592,2715.6,2715.2,3.7877]
[1739784808579,0.73648,2715.5,2715.2,4.52425]
[1739784808877,3.2019992,2715.6,2715.3,0.7365]
[1739784809379,3.9384592,2715.6,2715.3,0.7365]
[1739784809682,0.73655,2715.2,2715.1,0.00552425]
[1739784809877,6.46135,2715.2,2715.1,0.00552425]
[1739784810277,6.3032,2715.2,2715.1,0.00552425]
[1739784810475,7.03975,2715.2,2715.1,0.00552425]
[1739784811683,6.3032,2715.2,2715.1,0.00552425]
[1739784811882,7.03975,2715.2,2715.1,0.00552425]
[1739784812380,3.7862,2715.2,2715.1,0.00552425]
[1739784812581,6.3042,2715.2,2715.1,0.00552425]
[1739784812894,7.04075,2715.2,2715.1,0.00552425]
[1739784815379,6.3042,2715.2,2715.1,0.00552425]
[1739784815581,3.2078,2715.2,2715.1,0.74210425]
[1739784815788,5.7258,2715.2,2715.1,0.74210425]
[1739784816785,3.2078,2715.2,2715.1,0.74210425]
[1739784817974,3.7347992,2715.6,2715.5,0.73647]
[1739784818383,3.2019992,2715.6,2715.5,0.73647]
[1739784818583,5.7199992,2715.6,2715.5,0.73647]
[1739784818982,3.94418,2715.9,2715.3,3.2078]
[1739784818983,3.2078,2715.9,2715.3,6.4097992]
[1739784819187,2.518,2716.1,2715.6,3.2078]
[1739784819383,0.3688,2716.7,2716.0,3.2078]
[1739784819576,3.2078,2716.9,2716.7,0.73614]
[1739784819782,3.2019992,2717.2,2716.6,3.2078]
[1739784819982,3.2019992,2717.2,2717.1,0.73604]
[1739784820179,5.7258,2717.3,2717.1,0.73604]
[1739784820180,3.2078,2717.3,2717.1,0.73604]
[1739784820592,3.2078,2717.3,2717.1,0.73602]
[1739784820888,0.00552425,2717.4,2717.0,0.566]
[1739784821191,0.00552425,2717.4,2717.0,1.30205]
[1739784821381,0.00552425,2717.4,2717.0,1.30204]
[1739784821687,0.00552425,2717.4,2717.0,0.566]
[1739784821885,3.2019992,2717.3,2717.0,0.566]
[1739784822887,0.73607,2717.0,2716.9,0.00552425]
[1739784823086,3.9380692,2717.0,2716.9,0.00552425]
[1739784823286,6.4550692,2717.0,2716.9,0.00552425]
[1739784823489,50.4628692,2717.0,2716.9,0.00552425]
[1739784824188,53.6648684,2717.0,2716.9,0.00552425]
[1739784824492,3.2019992,2716.4,2716.2,0.5796]
[1739784824789,5.7189992,2716.4,2716.2,0.5796]
[1739784826999,5.7189992,2716.4,2716.0,0.00552425]
[1739784827292,6.4552392,2716.4,2716.0,0.74185425]
[1739784827488,6.4552392,2716.4,2716.0,0.00552425]
[1739784828294,5.7189992,2716.4,2716.0,0.74184425]
[1739784828497,5.7189992,2716.4,2716.0,0.00552425]
[1739784828799,0.73629,2716.2,2716.0,0.00552425]
[1739784829889,5.7189992,2716.4,2716.0,0.74184425]
[1739784830091,3.2019992,2716.4,2716.2,0.73627]
[1739784830295,3.2019992,2716.4,2716.0,0.00552425]
[1739784830296,2.517,2716.4,2716.0,0.00552425]
[1739784830496,2.517,2716.4,2716.2,0.73627]
[1739784831394,6.4097992,2716.7,2716.5,0.73619]
[1739784831692,8.9267992,2716.7,2716.0,3.21332425]
[1739784831894,9.6629492,2716.7,2716.4,0.73622]
[1739784832094,0.73619,2716.6,2716.0,3.21332425]
[1739784832291,9.6629692,2716.7,2716.3,0.73624]
[1739784832698,8.9267992,2716.7,2716.1,2.0301]
[1739784832891,2.517,2716.8,2716.7,0.73614]
[1739784837295,2.517,2716.8,2716.4,0.5896]
[1739784837499,0.73619,2716.6,2716.4,0.5896]
[1739784837697,0.73619,2716.6,2716.4,1.32583]
[1739784838405,3.2019992,2716.7,2716.1,2.0301]
[1739784838604,0.73627,2716.3,2716.1,0.73631]
[1739784839198,5.7179992,2716.4,2716.0,3.21332425]
[1739784839504,5.7179992,2716.4,2716.3,0.73626]
[1739784839803,3.2019992,2716.7,2716.6,0.73618]
[1739784840108,5.7179992,2716.7,2716.6,0.73618]
[1739784840802,3.9380792,2717.0,2716.8,0.73611]
[1739784841002,2.516,2716.9,2716.8,0.73611]
[1739784841900,3.25209,2716.9,2716.8,0.73611]
[1739784842309,2.516,2716.9,2716.8,0.73611]
[1739784843409,2.516,2716.9,2716.7,0.73612]
[1739784843604,3.25211,2716.9,2716.7,0.73612]
[1739784843811,2.516,2716.9,2716.4,0.5517]
[1739784844109,2.516,2716.9,2716.8,0.73612]
[1739784844508,3.25209,2716.9,2716.8,0.73612]
[1739784844704,2.516,2716.9,2716.8,0.73612]
[1739784845008,3.2078,2717.2,2716.4,0.5517]
[1739784845213,3.2078,2717.2,2717.1,0.73604]
[1739784845405,2.52152425,2717.4,2716.7,1.84038]
[1739784845606,2.52152425,2717.4,2717.3,0.73599]
[1739784846911,0.00552425,2717.4,2717.3,0.73599]
[1739784849414,0.00552425,2717.4,2717.3,3.94379]
[1739784853010,4.25e-06,2717.4,2717.3,9.94379]
[1739784853309,2.515,2718.2,2718.1,0.73574]
[1739784853510,0.73584,2717.9,2717.6,3.94369]
[1739784853708,5.7228,2718.2,2717.7,0.73586]
[1739784853709,3.2019992,2718.0,2717.7,0.73586]
[1739784853909,3.9378092,2718.0,2717.7,0.73586]
[1739784854206,3.9378092,2718.0,2717.6,3.2078]
[1739784854207,3.2019992,2718.0,2717.6,3.2078]
[1739784854512,3.9378792,2717.7,2717.6,0.00552425]
[1739784859811,3.9378792,2717.7,2717.6,0.74142425]
[1739784859812,3.2019992,2717.7,2717.6,0.74142425]
[1739784860414,3.9378792,2717.7,2717.6,0.74142425]
[1739784860618,3.9378792,2717.7,2717.6,0.00552425]
[1739784860917,3.9378792,2717.7,2717.6,0.74142425]
[1739784861318,3.9378792,2717.7,2717.6,0.00552425]
[1739784861810,3.2019992,2717.7,2717.6,0.74142425]
[1739784862613,2.514,2717.8,2717.6,0.00552425]
[1739784862812,2.514,2717.8,2717.7,0.73588]
[1739784863821,3.24985,2717.8,2717.7,0.73588]
[1739784864809,2.514,2717.8,2717.7,0.73588]
[1739784865517,3.2019992,2718.0,2717.9,0.73582]
[1739784865815,2.51952425,2718.1,2718.0,0.7358]
[1739784866320,2.51952425,2718.1,2717.7,1.1273]
[1739784866619,0.73583,2717.9,2717.7,1.86316]
[1739784866815,0.73583,2717.9,2717.8,0.73585]
[1739784867216,0.73587,2717.8,2717.6,3.94922425]
[1739784867516,0.5501,2717.9,2717.6,3.21332425]
[1739784867714,0.5501,2717.9,2717.8,0.73585]
[1739784868924,2.51952425,2718.1,2717.6,3.21332425]
[1739784869223,3.25530425,2718.1,2717.9,0.7358]
[1739784869417,0.74130425,2718.1,2718.0,0.7358]
[1739784869921,0.00552425,2718.1,2718.0,0.7358]
[1739784870120,0.00552425,2718.1,2718.0,1.3063]
[1739784870317,0.00552425,2718.1,2718.0,1.8818]
[1739784871128,2.513,2718.7,2718.1,1.83938]
[1739784871423,0.7357,2718.4,2718.2,0.73573]
[1739784872027,0.7357,2718.4,2718.0,6.9446]
[1739784872330,0.73568,2718.5,2718.3,0.73571]
[1739784872524,0.73566,2718.5,2718.3,0.73571]
[1739784872824,3.20752345,2718.6,2718.3,0.73571]
[1739784873221,0.73568,2718.5,2718.3,0.73571]
[1739784873426,0.7357,2718.4,2718.2,0.73573]
[1739784873625,0.7357,2718.4,2718.3,0.73571]
[1739784874031,3.20752345,2718.6,2718.0,6.9446]
[1739784874032,0.00552425,2718.6,2718.0,6.9446]
[1739784874233,0.00552425,2718.6,2718.5,0.73566]
[1739784875919,0.74115425,2718.6,2718.0,9.4576]
[1739784876123,0.74117425,2718.6,2718.0,9.4576]
[1739784876318,0.00552425,2718.6,2718.1,7.68494899]
[1739784876530,0.00552425,2718.6,2718.3,0.7357]
[1739784876738,0.74118425,2718.6,2718.3,0.7357]
[1739784877231,0.74118425,2718.6,2718.4,0.73568]
[1739784877427,0.74118425,2718.6,2718.1,7.68494899]
[1739784877428,3.20752345,2718.6,2718.1,7.68494899]
[1739784877635,0.7357,2718.4,2718.2,0.73572]
[1739784878735,3.20752345,2718.6,2718.0,6.9446]
[1739784879034,0.74116425,2718.6,2718.4,0.73566]
[1739784879332,0.73568,2718.5,2718.3,0.7357]
[1739784879834,0.74117425,2718.6,2718.4,0.73569]
[1739784880131,0.00552425,2718.6,2718.4,0.73569]
[1739784880334,0.74118425,2718.6,2718.4,0.73569]
[1739784880529,0.00552425,2718.6,2718.0,8.78406]
[1739784880730,0.73566,2718.5,2718.0,6.9446]
[1739784880933,0.73566,2718.5,2718.3,0.73569]
[1739784881134,0.00552425,2718.6,2718.3,0.73569]
[1739784881334,0.73568,2718.5,2718.4,0.73569]
[1739784881731,0.73568,2718.5,2718.0,8.78407]
[1739784881938,0.00552425,2718.6,2718.5,0.73566]
[1739784882631,0.00552425,2718.6,2718.4,0.73567]
[1739784882833,0.73569,2718.4,2718.3,3.94351]
[1739784883231,0.73568,2718.5,2718.3,3.94351]
[1739784883430,0.00552425,2718.6,2718.3,3.94351]
[1739784883635,0.00552425,2718.6,2718.3,3.2078]
[1739784883937,0.73567,2718.5,2718.3,0.7357]
[1739784885140,0.73567,2718.5,2718.0,4.9145]
[1739784885345,0.73573,2718.3,2718.1,0.73575]
[1739784885640,3.2019992,2718.5,2718.0,4.9145]
[1739784885832,0.7357,2718.4,2718.2,0.73571]
[1739784886633,3.2019992,2718.5,2718.2,0.73571]
[1739784886938,3.2019992,2718.5,2718.0,4.9145]
[1739784887139,3.2019992,2718.5,2718.0,5.65028]
[1739784887343,0.73577,2718.1,2718.0,1.7067]
[1739784887635,0.73585,2717.8,2717.7,0.5322]
[1739784887835,0.73582,2717.9,2717.7,1.26806]
[1739784888236,3.2019992,2718.2,2717.6,0.00552425]
[1739784888745,3.2019992,2718.2,2717.7,0.73587]
[1739784889045,3.9377492,2718.2,2717.9,0.7358]
[1739784889343,3.9377592,2718.2,2717.9,0.7358]
[1739784889541,3.2019992,2718.2,2717.9,0.7358]
[1739784889736,3.2078,2718.3,2718.0,0.5612]
[1739784889942,3.2078,2718.3,2718.1,0.5688]
[1739784890242,3.2078,2718.3,2718.2,0.73574]
[1739784890437,3.2078,2718.3,2718.1,1.1532]
[1739784890638,3.94353,2718.3,2718.1,1.88896]
[1739784890842,3.2078,2718.3,2718.1,1.88896]
[1739784891043,3.94352,2718.3,2718.1,1.88896]
[1739784891242,3.2078,2718.3,2718.2,0.73574]
[1739784891544,0.73574,2718.2,2718.1,1.1532]
[1739784892241,0.73574,2718.2,2718.1,0.5688]
[1739784892445,3.2019992,2718.2,2717.8,2.0301]
[1739784892637,0.73582,2717.9,2717.8,2.0301]
[1739784893735,0.73582,2718.0,2717.8,2.0301]
[1739784893941,3.7692992,2718.2,2717.8,2.0301]
[1739784894144,0.73582,2717.9,2717.8,2.0301]
[1739784894346,3.9378192,2717.9,2717.8,2.0301]
[1739784894844,0.73585,2717.8,2717.7,3.2078]
[1739784895045,1.30495,2717.8,2717.7,3.2078]
[1739784895648,0.5691,2717.8,2717.6,0.00552425]
[1739784895841,0.73588,2717.7,2717.6,0.00552425]
[1739784898344,0.5691,2717.8,2717.6,0.00552425]
[1739784898539,1.30497,2717.8,2717.6,0.00552425]
[1739784898941,0.5691,2717.8,2717.6,0.00552425]
[1739784899151,0.5691,2717.8,2717.7,0.73588]
[1739784899346,3.2078,2718.0,2717.7,0.73588]
[1739784899347,2.512,2717.9,2717.7,0.73588]
[1739784899549,3.24783,2717.9,2717.7,0.73588]
[1739784900043,2.512,2717.9,2717.6,0.00552425]
[1739784900250,0.73588,2717.7,2717.6,0.00552425]
[1739784901851,5.7139992,2717.9,2717.6,0.00552425]
[1739784902039,6.4498292,2717.9,2717.7,0.73586]
[1739784902242,0.73585,2717.8,2717.7,0.73586]
[1739784902441,6.4498392,2717.9,2717.7,0.73586]
[1739784902638,3.2078,2718.0,2717.9,0.73582]
[1739784903850,3.94349,2718.4,2718.2,0.73573]
[1739784904047,3.2078,2718.4,2718.3,1.0775]
[1739784904245,3.94349,2718.4,2718.3,1.0775]
[1739784904749,3.2078,2718.4,2718.3,1.81321]
[1739784905745,3.2078,2718.4,2718.3,1.0775]
[1739784905947,3.94349,2718.4,2718.3,1.0775]
[1739784906152,3.2078,2718.4,2718.3,1.81321]
[1739784906853,0.00552425,2718.6,2718.5,0.73566]
[1739784907547,0.74117425,2718.6,2718.4,0.73568]
[1739784907741,0.00552425,2718.6,2718.3,4.2853]
[1739784907948,0.00552425,2718.6,2718.5,0.73566]
[1739784909954,0.73567,2718.5,2718.3,5.021]
[1739784910251,0.74117425,2718.6,2718.3,5.021]
[1739784910450,0.74117425,2718.6,2718.3,4.2853]
[1739784910653,0.74117425,2718.6,2718.4,0.73568]
[1739784911154,0.00552425,2718.6,2718.3,4.2853]
[1739784911347,0.00552425,2718.6,2718.5,0.73566]
[1739784912249,0.74117425,2718.6,2718.4,0.73567]
[1739784912450,0.74115425,2718.6,2718.5,0.73566]
[1739784912651,0.00552425,2718.6,2718.5,0.73566]
[1739784922357,0.74115425,2718.6,2718.5,0.73566]
[1739784922665,0.00552425,2718.6,2718.5,0.73566]
[1739784923557,0.74115425,2718.6,2718.5,0.73566]
[1739784923763,0.00552425,2718.6,2718.5,0.73566]
[1739784925059,0.00552425,2718.6,2718.2,3.2078]
[1739784925258,3.2019992,2718.4,2717.9,3.2078]
[1739784925464,3.9377792,2718.1,2717.9,0.73581]
[1739784925662,3.2019992,2718.1,2718.0,0.7358]
[1739784926158,3.79403,2718.3,2718.0,0.7358]
[1739784926361,0.73575,2718.2,2718.0,0.7358]
[1739784926569,3.0583,2718.3,2717.7,1.6377]
[1739784926971,0.73575,2718.2,2717.7,1.6377]
[1739784927273,0.73577,2718.1,2718.0,0.73578]
[1739784927567,3.0583,2718.3,2718.0,0.73578]
[1739784927568,0.73576,2718.2,2718.0,0.73578]
[1739784928869,0.5483,2718.3,2717.8,2.0301]
[1739784928870,0.73579,2718.1,2717.8,2.76593]
[1739784929063,0.5483,2718.3,2717.8,2.0301]
[1739784929264,0.5483,2718.3,2717.9,0.7358]
[1739784929474,0.73578,2718.1,2717.9,0.7358]
[1739784929772,0.73577,2718.1,2717.9,0.7358]
[1739784929972,1.28403,2718.3,2718.0,0.73577]
[1739784930375,0.5483,2718.3,2718.0,0.73577]
[1739784930676,0.73572,2718.3,2718.1,0.73576]
[1739784930866,0.73572,2718.3,2718.2,0.5726]
[1739784931973,5.7119992,2718.4,2718.2,0.5726]
[1739784932176,5.7119992,2718.4,2718.2,1.30834]
[1739784932373,0.73571,2718.3,2718.2,0.5726]
[1739784932774,0.00552425,2718.6,2718.2,0.5726]
[1739784933078,0.00552425,2718.6,2718.5,0.73566]
[1739784933574,0.74116425,2718.6,2718.3,1.1025]
[1739784933875,0.74117425,2718.6,2718.4,0.73566]
[1739784934079,0.74117425,2718.6,2718.3,3.1326]
[1739784934080,0.00552425,2718.6,2718.3,3.1326]
[1739784934279,0.00552425,2718.6,2718.5,0.73566]
[1739784935878,0.74116425,2718.6,2718.4,0.73567]
[1739784936384,0.00552425,2718.6,2718.5,0.73566]
[1739784940095,0.74115425,2718.6,2718.5,0.73566]
[1739784940290,0.00552425,2718.6,2718.3,1.1025]
[1739784940593,0.74117425,2718.6,2718.4,0.73567]
[1739784940789,0.73566,2718.5,2718.4,0.73567]
[1739784941095,0.74117425,2718.6,2718.4,0.73567]
[1739784941297,0.74117425,2718.6,2718.5,0.73566]
[1739784942190,0.73566,2718.5,2718.4,0.73568]
[1739784944197,0.73569,2718.4,2718.3,0.5444]
[1739784944402,1.26689,2718.4,2718.3,1.28011]
[1739784944896,0.73577,2718.1,2718.0,3.2078]
[1739784945290,0.7358,2718.0,2717.9,0.5444]
[1739784946099,3.0402,2718.0,2717.6,0.00552425]
[1739784946298,3.9378592,2717.8,2717.6,0.00552425]
[1739784946491,3.2019992,2717.8,2717.6,0.74141425]
[1739784946890,3.2078,2717.9,2717.6,0.00552425]
[1739784947099,3.2078,2717.9,2717.7,1.28605]
[1739784947294,3.2078,2717.9,2717.7,0.5502]
[1739784947486,3.2078,2717.9,2717.8,0.73585]
[1739784947798,3.2078,2717.9,2717.7,1.28606]
[1739784948598,3.94363,2717.9,2717.7,0.5502]
[1739784949204,3.2078,2717.9,2717.7,1.28607]
[1739784949392,3.2078,2717.9,2717.7,0.5502]
[1739784949591,3.2078,2717.9,2717.8,0.73585]
[1739784949899,3.2078,2717.9,2717.8,1.28575]
[1739784950100,1.84468425,2718.6,2718.5,0.73566]
[1739784950101,2.51452425,2718.6,2718.5,0.73566]
[1739784950302,2.51452425,2718.6,2718.2,6.4097992]
[1739784950500,2.51452425,2718.6,2718.5,0.73566]
[1739784950501,0.00552425,2718.6,2718.5,0.73566]
[1739784950697,0.74116425,2718.6,2718.4,0.73567]
[1739784950996,0.00552425,2718.6,2718.3,0.5894]
[1739784951294,0.5391,2718.5,2718.0,1.1394]
[1739784951497,0.5554,2718.4,2718.0,0.5895]
[1739784951691,0.73571,2718.3,2718.0,1.32529]
[1739784951893,0.00552425,2718.6,2718.5,0.73566]
[1739784953801,0.00552425,2718.6,2718.5,3.94346]
[1739784957406,6.4097992,2719.2,2719.0,0.73551]
[1739784957407,3.2078,2719.2,2719.0,0.73551]
[1739784957705,3.2078,2719.2,2719.1,0.7355]
[1739784957897,3.94328,2719.2,2719.0,0.73551]
[1739784958095,3.2078,2719.2,2719.0,0.73551]
[1739784958304,3.94327,2719.2,2719.0,0.73551]
[1739784958605,3.2078,2719.2,2719.1,1.2874]
[1739784959099,3.2078,2719.2,2719.1,0.5519]
[1739784959400,4.52337,2719.2,2719.1,0.5519]
[1739784960004,0.73551,2719.1,2718.8,0.5516]
[1739784960202,3.7879,2719.2,2718.9,0.73554]
[1739784960705,3.7879,2719.2,2718.8,0.5516]
[1739784961199,3.7879,2719.2,2718.9,0.73553]
[1739784961501,0.73551,2719.1,2718.9,0.73553]
[1739784961702,0.73551,2719.1,2718.8,0.5516]
[1739784961901,0.73551,2719.1,2718.9,0.73554]
[1739784962407,0.73551,2719.1,2719.0,0.73553]
[1739784963000,3.7879,2719.2,2718.8,0.5516]
[1739784963406,0.7355,2719.1,2718.8,0.5516]
[1739784963608,0.73551,2719.1,2718.9,0.73554]
[1739784964803,0.5801,2719.2,2718.8,0.5516]
[1739784965005,0.7355,2719.1,2718.9,0.73555]
[1739784965205,0.5801,2719.2,2719.0,0.7355]
[1739784965502,1.31558,2719.2,2719.0,0.7355]
[1739784965904,1.31559,2719.2,2719.0,0.73553]
[1739784966111,0.5801,2719.2,2719.0,1.29153]
[1739784966303,0.7355,2719.1,2719.0,0.556]
[1739784966504,0.7355,2719.1,2719.0,1.29153]
[1739784966713,1.31558,2719.2,2719.1,0.7355]
[1739784967007,0.5801,2719.2,2719.0,0.556]
[1739784967207,0.7355,2719.1,2719.0,0.556]
[1739784967518,0.7355,2719.1,2719.0,1.29153]
[1739784967808,0.7355,2719.1,2719.0,1.29151]
[1739784968709,0.5801,2719.2,2719.0,0.556]
[1739784968908,0.7355,2719.1,2719.0,1.29152]
[1739784969210,0.5801,2719.2,2719.0,0.556]
[1739784969411,1.31559,2719.2,2719.1,0.7355]
[1739784969610,1.31559,2719.2,2719.0,0.556]
[1739784969611,0.5801,2719.2,2719.0,0.556]
[1739784969811,0.7355,2719.1,2719.0,1.29152]
[1739784970207,0.5801,2719.2,2719.0,0.556]
[1739784970511,0.7355,2719.1,2719.0,1.29151]
[1739784970713,0.7355,2719.1,2719.0,0.556]
[1739784971606,0.7355,2719.1,2719.0,1.29153]
[1739784972112,0.7355,2719.1,2719.0,0.556]
[1739784972515,0.7355,2719.1,2719.0,1.29153]
[1739784973518,0.7355,2719.1,2719.0,0.556]
[1739784973809,0.7355,2719.1,2718.8,0.5516]
[1739784973810,0.5801,2719.2,2718.9,0.73554]
[1739784974010,0.73558,2718.8,2718.7,0.5519]
[1739784974209,6.2964992,2719.1,2718.7,1.28748]
[1739784974517,0.73557,2718.9,2718.7,1.28748]
[1739784974816,0.73558,2718.8,2718.7,1.28748]
[1739784975404,6.2964992,2719.1,2718.7,1.28748]
[1739784975405,7.0320092,2719.1,2718.7,0.5519]
[1739784975615,2.507,2719.1,2719.0,0.73553]
[1739784975803,1.31559,2719.2,2719.0,0.73553]
[1739784976509,0.5801,2719.2,2718.7,0.5519]
[1739784976711,1.31559,2719.2,2719.0,0.73551]
[1739784976913,0.7355,2719.1,2719.0,0.73551]
[1739784977519,0.5801,2719.2,2719.1,0.7355]
[1739784977909,1.31557,2719.2,2719.1,0.7355]
[1739784979117,0.5801,2719.2,2719.1,0.7355]
[1739784980112,0.5801,2719.2,2719.0,0.5632]
[1739784980113,0.7355,2719.1,2719.0,0.5632]
[1739784980313,0.5801,2719.2,2718.9,0.5591]
[1739784980518,0.73553,2719.0,2718.9,0.5591]
[1739784980715,0.73554,2719.0,2718.8,0.73556]
[1739784980910,0.73555,2718.9,2718.8,0.73556]
[1739784981116,0.73555,2718.9,2718.7,3.7597]
[1739784981117,0.73553,2719.0,2718.7,3.7597]
[1739784981314,0.73552,2719.1,2718.9,0.73555]
[1739784981517,0.7355,2719.1,2718.9,0.73555]
[1739784981822,0.73552,2719.1,2718.9,0.73554]
[1739784982314,0.5801,2719.2,2718.7,3.7597]
[1739784982315,0.73553,2719.0,2718.7,3.7597]
[1739784982821,0.73553,2719.0,2718.9,0.73555]
[1739784983218,0.5801,2719.2,2718.9,0.73555]
[1739784983418,0.73554,2719.0,2718.8,0.73557]
[1739784984118,0.5801,2719.2,2718.7,3.7597]
[1739784984318,0.7355,2719.1,2719.0,0.73552]
[1739784984522,1.31558,2719.2,2719.0,0.73552]
[1739784984713,1.31558,2719.2,2718.7,3.7597]
[1739784984913,1.31558,2719.2,2719.1,0.7355]
[1739784985714,0.5801,2719.2,2719.1,0.7355]
[1739784986018,1.31557,2719.2,2719.1,0.7355]
[1739784986920,0.5801,2719.2,2719.1,0.7355]
[1739784987120,1.31557,2719.2,2719.1,0.7355]
[1739784987617,8.92132345,2719.4,2718.7,5.59869]
[1739784987822,8.92132345,2719.4,2719.1,0.73547]
[1739784988017,0.73547,2719.2,2719.1,0.73547]
[1739784988217,8.92132345,2719.4,2719.0,0.00552425]
[1739784988518,6.41532345,2719.4,2719.0,0.00552425]
[1739784988916,0.73545,2719.3,2719.2,0.73547]
[1739784989318,6.41532345,2719.4,2719.1,1.31809]
[1739784989513,0.73547,2719.2,2719.1,1.31809]
[1739784989713,6.41532345,2719.4,2719.1,0.5826]
[1739784989926,0.73545,2719.3,2719.2,0.73546]
[1739784990222,6.41532345,2719.4,2719.1,0.5826]
[1739784990416,0.73546,2719.3,2719.2,0.73547]
[1739784990818,6.41532345,2719.4,2719.2,0.73547]
[1739784991124,0.73544,2719.3,2719.2,0.73547]
[1739784991929,0.73547,2719.2,2719.1,0.5826]
[1739784992624,6.41532345,2719.4,2719.1,0.5826]
[1739784992824,0.73545,2719.3,2719.1,1.31808]
[1739784993024,6.41532345,2719.4,2719.1,1.31808]
[1739784993225,6.41532345,2719.4,2719.0,0.00552425]
[1739784993528,0.7355,2719.1,2719.0,0.74104425]
[1739784993825,0.7355,2719.1,2719.0,0.00552425]
[1739784994023,0.7355,2719.2,2719.0,0.00552425]
[1739784994223,0.7355,2719.1,2719.0,0.00552425]
[1739784994523,0.5613,2719.1,2719.0,0.74105425]
[1739784997126,0.73549,2719.2,2719.1,0.73548]